bitfinex/quotes_ETHUSD_20250726
["timestamp","ask_amount","ask_price","bid_price","bid_amount"]
[1753553832251,0.1,3716.6,3716.5,2.69070361]
[1753553832849,0.1,3716.8,3716.7,2.69055882]
[1753553833238,0.1,3716.8,3716.7,3.63745882]
[1753553833550,0.1,3717.1,3717.0,2.69034167]
[1753553833919,0.1,3717.1,3716.7,3.63745882]
[1753553834139,0.1,3717.1,3717.0,2.69034167]
[1753553834446,0.1,3717.1,3717.0,3.63724167]
[1753553834647,3.27,3717.8,3717.1,2.6902648]
[1753553834813,0.1,3717.1,3717.0,0.9469]
[1753553835210,0.1,3716.9,3716.8,0.36374588]
[1753553835846,0.1,3716.9,3716.0,0.7622]
[1753553836146,0.1,3716.9,3716.8,2.69048643]
[1753553836350,0.1,3716.9,3716.6,2.69058259]
[1753553836642,0.1,3716.9,3716.5,0.9469]
[1753553836850,0.1,3716.9,3716.8,2.69048643]
[1753553837169,0.1,3717.1,3717.0,2.69034167]
[1753553837666,0.1,3717.1,3717.0,3.63724167]
[1753553838648,3.748,3718.2,3717.3,2.6900685]
[1753553838851,0.1,3717.6,3717.5,0.1344]
[1753553839229,0.573,3717.6,3717.5,0.1344]
[1753553839555,3.573,3717.6,3717.5,0.1344]
[1753553839739,0.573,3717.6,3717.5,0.1344]
[1753553840356,1.20263798,3717.6,3717.0,2.69030989]
[1753553840553,0.1,3717.3,3717.2,0.1344]
[1753553842562,0.1,3717.3,3717.2,2.82459692]
[1753553842765,0.1,3717.3,3717.2,0.1344]
[1753553842956,0.1,3717.3,3717.2,2.82459692]
[1753553843492,0.1,3717.3,3717.2,0.1344]
[1753553843778,0.1,3717.3,3717.2,2.82459692]
[1753553843977,3.0,3717.8,3717.5,2.68993612]
[1753553844283,3.0,3717.9,3717.6,2.68987598]
[1753553844451,0.6074,3718.2,3717.7,2.68982291]
[1753553844652,0.473,3718.2,3717.8,2.68973406]
[1753553844950,3.0,3718.1,3717.8,0.1344]
[1753553845164,0.1,3717.9,3717.8,0.1344]
[1753553845361,3.0,3718.1,3717.8,0.1344]
[1753553845567,0.1,3717.9,3717.8,0.1344]
[1753553847682,0.1,3717.9,3717.8,2.82416276]
[1753553847983,3.258,3718.2,3718.0,2.68955249]
[1753553848169,0.1,3717.9,3717.8,0.1344]
[1753553848379,0.1,3717.2,3717.1,2.69026929]
[1753553848894,0.1,3717.3,3717.2,2.69018744]
[1753553849056,0.1,3717.5,3717.3,2.69011874]
[1753553849396,0.1,3717.2,3717.1,2.69026929]
[1753553849690,0.1,3717.5,3717.3,2.69010158]
[1753553850693,0.1,3717.5,3717.4,2.69005218]
[1753553851383,0.1,3717.7,3717.6,2.68990746]
[1753553852162,0.1,3717.7,3717.6,3.63680746]
[1753553852363,0.1,3717.9,3717.8,2.68976276]
[1753553852563,0.1,3717.9,3717.8,3.63666276]
[1753553852762,0.1,3717.7,3717.6,3.32389649]
[1753553853005,0.1,3717.7,3717.6,2.6898674]
[1753553855860,0.1,3717.7,3717.6,3.1537674]
[1753553858392,0.1,3717.7,3717.6,3.2881674]
[1753553858565,0.1,3717.7,3717.6,3.7711674]
[1753553859798,0.1,3717.7,3717.6,4.0810674]
[1753553860093,0.1,3717.7,3717.6,3.50137491]
[1753553860315,0.1,3717.7,3717.6,3.96527491]
[1753553860602,0.1,3717.7,3717.6,4.44827491]
[1753553862994,0.1,3717.7,3717.6,3.98437491]
[1753553863183,0.1,3717.7,3717.6,2.8242674]
[1753553863810,0.001,3718.7,3718.5,2.68918764]
[1753553864107,0.001,3718.7,3718.6,2.6891841]
[1753553865310,0.001,3718.7,3718.5,2.68924453]
[1753553865511,0.001,3718.7,3718.4,2.68927622]
[1753553865713,0.50101389,3718.7,3718.4,2.68927622]
[1753553866016,0.4664,3718.6,3718.4,2.68927622]
[1753553866389,0.4664,3718.6,3718.0,0.9514]
[1753553867504,0.03461389,3718.7,3718.0,0.9514]
[1753553867706,0.03461389,3718.7,3718.5,2.68918518]
[1753553867889,0.001,3718.7,3718.6,2.6891841]
[1753553869317,0.001,3718.7,3718.6,3.6405841]
[1753553869688,0.001,3718.7,3718.6,4.16394531]
[1753553873320,1e-08,3718.8,3718.7,2.68911178]
[1753553873627,1e-08,3718.8,3718.7,3.64051178]
[1753553873829,1e-08,3718.8,3718.7,3.77491178]
[1753553874133,1e-08,3718.8,3718.7,5.06148919]
[1753553874317,1e-08,3718.8,3718.7,4.57258919]
[1753553874631,1e-08,3718.8,3718.7,4.11008919]
[1753553874798,1e-08,3718.8,3718.7,0.1344]
[1753553874799,0.46640001,3718.8,3718.7,0.1344]
[1753553875129,0.46640001,3718.8,3717.8,2.68976276]
[1753553875302,0.46640001,3718.8,3718.6,2.82355225]
[1753553875490,0.4664,3718.7,3718.6,0.1344]
[1753553876424,0.4664,3718.7,3718.5,2.68925533]
[1753553876425,0.4674,3718.7,3718.5,2.68925533]
[1753553876627,0.4674,3718.7,3718.5,2.82365533]
[1753553876934,0.001,3718.7,3718.5,0.1344]
[1753553877133,0.4674,3718.7,3718.5,2.82360019]
[1753553877497,0.4674,3718.7,3718.5,0.1344]
[1753553877820,0.4664,3718.6,3718.5,0.1344]
[1753553878343,0.4664,3718.6,3718.5,2.82365642]
[1753553878716,0.001,3718.7,3718.5,2.82365642]
[1753553879040,0.4674,3718.7,3718.5,2.82365642]
[1753553879348,0.4674,3718.7,3718.6,2.6891841]
[1753553879565,0.001,3718.7,3718.6,2.6891841]
[1753553880224,0.4674,3718.7,3718.5,2.82363953]
[1753553881059,0.4674,3718.7,3718.5,0.1344]
[1753553881060,0.4664,3718.6,3718.5,0.1344]
[1753553881258,0.4664,3718.6,3718.3,0.1344]
[1753553881414,0.0336157,3718.5,3718.3,2.8237731]
[1753553881751,0.4664,3718.4,3718.3,0.1344]
[1753553882130,0.4664,3718.4,3718.3,2.82380107]
[1753553882310,0.0336148,3718.6,3718.4,2.68930278]
[1753553882511,0.001,3718.7,3718.6,2.6891841]
[1753553882758,0.001,3718.7,3718.6,3.7749841]
[1753553883556,0.001,3718.7,3718.6,4.42141024]
[1753553884551,0.001,3718.7,3718.6,3.93251024]
[1753553884772,0.001,3718.7,3718.6,3.2860841]
[1753553884965,0.001,3718.7,3718.6,3.7749841]
[1753553888986,1e-08,3718.8,3718.7,2.68911178]
[1753553889289,1e-08,3718.8,3718.7,6.80892241]
[1753553889434,1e-08,3718.8,3718.7,6.79551178]
[1753553889643,1e-08,3718.8,3718.7,8.1071391]
[1753553892445,1e-08,3718.8,3718.7,11.1071391]
[1753553893378,1e-08,3718.8,3718.7,11.9150391]
[1753553895369,1e-08,3718.8,3718.7,11.8840391]
[1753553895569,1e-08,3718.8,3718.7,5.7600391]
[1753553895903,1e-08,3718.8,3718.7,8.8840391]
[1753553897700,1e-08,3718.8,3718.7,11.8840391]
[1753553901500,1e-08,3718.8,3718.7,11.8640391]
[1753553902395,1e-08,3718.8,3718.7,8.7600391]
[1753553902574,1e-08,3718.8,3718.7,11.3731391]
[1753553902777,1e-08,3718.8,3718.7,10.9106391]
[1753553903198,1e-08,3718.8,3718.7,7.9106391]
[1753553903387,1e-08,3718.8,3718.7,4.8086391]
[1753553903692,1e-08,3718.8,3718.7,7.9046391]
[1753553905968,1e-08,3718.8,3718.7,8.3629391]
[1753553906200,1e-08,3718.8,3718.7,2.68911178]
[1753553906504,0.86870001,3718.8,3718.7,5.77211178]
[1753553907505,0.86870001,3718.8,3718.7,2.68911178]
[1753553907870,0.86870001,3718.8,3718.6,2.82358403]
[1753553908091,0.49920001,3718.8,3718.6,5.89858403]
[1753553908409,0.8687,3718.7,3718.6,5.89858403]
[1753553908618,0.8687,3718.7,3718.6,0.1344]
[1753553908918,0.8687,3718.7,3718.6,2.8235841]
[1753553910019,0.4992,3718.7,3718.6,2.8235841]
[1753553910525,0.16800666,3719.5,3718.6,2.8235841]
[1753553910526,1e-08,3720.2,3720.1,3.44519978]
[1753553910694,1e-08,3720.2,3720.1,6.54008077]
[1753553910891,1e-08,3720.2,3720.1,7.46809978]
[1753553911085,1e-08,3720.2,3720.1,5.41572965]
[1753553911286,1e-08,3720.2,3720.1,8.07731064]
[1753553911521,1e-08,3720.2,3720.1,4.46082965]
[1753553911818,1e-08,3720.2,3720.1,5.77909978]
[1753553913488,1e-08,3720.2,3720.1,6.27569978]
[1753553914749,1e-08,3720.2,3720.1,6.73399978]
[1753553915026,1e-08,3720.2,3720.1,2.68809978]
[1753553915212,0.72650001,3720.2,3720.1,2.68809978]
[1753553918136,0.35700001,3720.2,3720.1,2.68809978]
[1753553919242,0.72650001,3720.2,3719.0,0.7536]
[1753553919404,30.0,3720.0,3719.7,2.68838106]
[1753553919605,0.38970977,3719.9,3719.7,2.68838106]
[1753553919810,0.02020977,3719.9,3719.7,2.68838106]
[1753553920015,0.357,3719.8,3719.7,2.68838106]
[1753553920436,0.357,3719.8,3719.7,2.82278106]
[1753553920637,0.357,3720.1,3719.9,2.68821478]
[1753553920850,0.02020977,3720.0,3719.9,2.68821478]
[1753553921007,0.357,3720.0,3719.9,2.68821478]
[1753553921205,0.37720977,3720.0,3719.9,2.68821478]
[1753553921539,0.74670977,3720.0,3719.8,2.68829829]
[1753553921720,0.38970977,3720.0,3719.8,2.68829829]
[1753553921926,0.357,3719.9,3719.8,2.68829829]
[1753553922935,0.3695,3720.0,3719.9,2.6882443]
[1753553923241,0.37720978,3720.2,3720.0,2.68813492]
[1753553923425,0.02020978,3720.2,3720.0,2.68813492]
[1753553923636,0.357,3720.1,3720.0,2.68813492]
[1753553923830,0.357,3720.1,3719.7,2.8227647]
[1753553923831,0.357,3720.1,3719.8,2.68831213]
[1753553924032,0.02020977,3720.0,3719.9,2.6882443]
[1753553925444,0.02020977,3720.1,3719.9,2.6882443]
[1753553925645,0.37720977,3720.1,3719.9,2.6882443]
[1753553926739,0.37720977,3720.1,3720.0,2.68817204]
[1753553926940,1e-08,3720.2,3720.1,2.68809978]
[1753553929046,1e-08,3720.2,3720.1,3.75946402]
[1753553929221,1e-08,3720.2,3720.1,4.36346402]
[1753553929425,1e-08,3720.2,3720.1,3.93316402]
[1753553930113,30.72650001,3720.2,3719.9,2.68820385]
[1753553930318,0.37720977,3720.1,3719.9,2.68820385]
[1753553931147,0.37720977,3720.1,3719.8,0.1344]
[1753553931456,0.37720977,3720.1,3719.9,2.68823461]
[1753553931629,0.37720977,3720.1,3719.8,0.1344]
[1753553931953,0.02020977,3720.1,3719.9,2.6882443]
[1753553932158,0.02020978,3720.2,3719.9,2.6882443]
[1753553932947,0.02020978,3720.2,3720.0,2.68815563]
[1753553933313,30.00000001,3720.2,3720.0,2.68815563]
[1753553933852,1e-08,3720.2,3719.9,2.6882443]
[1753553934061,1e-08,3720.2,3720.1,2.68809978]
[1753553935522,1e-08,3720.2,3720.1,3.15769978]
[1753553935742,1e-08,3720.2,3720.1,3.29209978]
[1753553936053,1e-08,3720.2,3720.1,3.72239978]
[1753553941660,1e-08,3720.2,3720.1,4.46829518]
[1753553941865,0.001,3721.0,3720.9,2.68752183]
[1753553942289,0.001,3721.0,3720.9,3.15712183]
[1753553942546,0.001,3721.0,3720.9,2.68752183]
[1753553942742,0.001,3721.0,3720.9,3.43782183]
[1753553942943,0.001,3721.0,3720.9,5.01066539]
[1753553944030,0.001,3721.0,3720.9,2.68752183]
[1753553944238,0.001,3721.0,3720.8,2.82198078]
[1753553944534,0.001,3721.0,3720.2,2.68802752]
[1753553944535,30.357,3720.9,3720.2,2.68802752]
[1753553944770,30.0,3720.7,3720.5,2.68781038]
[1753553944963,30.0,3720.8,3720.6,0.1344]
[1753553945172,30.0,3720.7,3720.6,0.1344]
[1753553945735,30.357,3720.7,3720.2,0.1344]
[1753553945934,0.1344,3720.8,3720.2,2.82240586]
[1753553946152,0.1344,3720.8,3720.5,2.6877537]
[1753553946348,2.945,3720.7,3720.3,0.4696]
[1753553946567,2.945,3720.7,3720.6,2.68768071]
[1753553946888,0.001,3721.0,3720.9,2.68752183]
[1753553947279,0.001,3721.0,3720.9,3.15712183]
[1753553948081,0.001,3721.0,3720.9,2.68752183]
[1753553950478,0.001,3721.0,3720.9,3.58742183]
[1753553953071,0.001,3721.0,3720.9,4.22837064]
[1753553955519,0.001,3721.0,3720.9,5.04727064]
[1753553955812,0.001,3721.0,3720.9,7.95827064]
[1753553956133,1e-08,3721.0,3720.9,7.95827064]
[1753553956783,1e-08,3721.0,3720.9,5.04727064]
[1753553957114,1e-08,3721.0,3720.9,5.07414585]
[1753553957673,1e-08,3721.0,3720.9,8.07414585]
[1753553958018,1e-08,3721.0,3720.9,8.04727064]
[1753553959216,1e-08,3721.0,3720.9,10.94527064]
[1753553959427,3.874,3723.0,3722.8,2.68608675]
[1753553959775,3.874,3723.0,3722.8,2.82048675]
[1753553960005,3.874,3723.0,3722.9,2.68607805]
[1753553960519,3.874,3723.0,3722.8,0.1344]
[1753553960718,0.1344,3723.3,3722.9,2.68604318]
[1753553960888,0.1344,3723.3,3722.9,2.68607805]
[1753553961090,0.357,3723.3,3723.0,2.68597417]
[1753553961295,0.4914,3723.5,3723.0,2.82037417]
[1753553961481,0.357,3723.4,3723.1,2.68590275]
[1753553961806,0.099,3723.5,3723.1,2.68590275]
[1753553962004,0.456,3723.5,3723.1,2.68590275]
[1753553962714,0.456,3723.5,3723.0,0.1344]
[1753553962907,1.37259147,3723.5,3723.0,2.82040565]
[1753553963215,1.37259147,3723.5,3722.7,3.15241634]
[1753553963216,3.0,3723.3,3722.2,2.884]
[1753553963511,0.74670977,3723.2,3722.9,0.1344]
[1753553963909,0.357,3723.1,3722.9,0.1344]
[1753553964116,30.02020977,3723.0,3722.4,2.68641485]
[1753553964316,0.357,3722.9,3722.5,2.82075985]
[1753553965624,0.357,3722.9,3722.5,0.1344]
[1753553968820,0.1344,3723.1,3722.5,0.6006]
[1753553969028,30.0,3723.1,3722.8,0.1344]
[1753553970094,30.0,3723.1,3722.8,2.82054331]
[1753553970631,30.0,3723.1,3722.9,2.68604298]
[1753553970825,32.857,3723.2,3722.9,2.68604298]
[1753553971027,30.0,3723.2,3723.0,2.68600203]
[1753553971203,0.001,3723.3,3723.2,2.68586162]
[1753553971610,0.001,3723.3,3723.2,3.15206162]
[1753553971923,0.001,3723.3,3723.1,0.5782]
[1753553972122,0.001,3723.3,3723.1,0.1344]
[1753553972427,0.001,3723.3,3723.2,2.68586162]
[1753553972745,0.001,3723.3,3723.2,3.42064778]
[1753553972923,0.001,3723.3,3723.2,3.86444778]
[1753553974252,0.001,3723.3,3723.2,3.59586162]
[1753553977024,0.001,3723.3,3723.2,3.62272023]
[1753553977533,0.001,3723.3,3723.2,3.59586162]
[1753553978103,0.001,3723.3,3723.2,4.38486162]
[1753553978308,1e-08,3723.3,3723.2,7.22286162]
[1753553978511,1e-08,3723.3,3723.2,8.21642908]
[1753553978715,1e-08,3723.3,3723.2,7.77262908]
[1753553979119,1e-08,3723.3,3723.2,5.37842908]
[1753553979341,1e-08,3723.3,3723.2,8.21542908]
[1753553980423,1e-08,3723.3,3723.2,8.21342908]
[1753553980620,1e-08,3723.3,3723.2,5.37842908]
[1753553980821,1e-08,3723.3,3723.2,7.76762908]
[1753553981242,1e-08,3723.3,3722.8,3.47512178]
[1753553981551,1e-08,3723.3,3722.7,2.831]
[1753553981703,1e-08,3723.3,3722.7,5.51720259]
[1753553981903,1e-08,3723.3,3722.9,2.68606186]
[1753553982337,1e-08,3723.3,3723.2,2.82026162]
[1753553982538,1e-08,3723.3,3723.2,3.19475778]
[1753553983108,1e-08,3723.3,3723.2,0.1344]
[1753553983308,0.72650001,3723.3,3723.1,0.1344]
[1753553983538,0.02020977,3723.2,3723.1,0.1344]
[1753553983832,0.37720977,3723.2,3723.1,0.1344]
[1753553984227,0.37720977,3723.2,3722.4,2.68639343]
[1753553984434,0.37720977,3723.2,3723.0,0.1344]
[1753553984626,0.02020977,3723.2,3723.0,0.1344]
[1753553984805,0.357,3723.1,3723.0,0.1344]
[1753553985434,30.00000001,3723.3,3723.0,0.1344]
[1753553985743,0.02020977,3723.2,3723.0,0.1344]
[1753553985945,0.74670977,3723.2,3723.0,0.1344]
[1753553986508,30.0,3723.0,3722.7,0.1344]
[1753553986704,0.74670977,3722.9,3722.7,0.1344]
[1753553986952,0.37720977,3722.9,3722.7,0.1344]
[1753553987466,0.02020977,3722.9,3722.7,0.1344]
[1753553988041,0.37720977,3722.9,3722.7,0.1344]
[1753553988341,0.02020977,3722.9,3722.7,0.1344]
[1753553988958,36.2266502,3722.8,3721.8,3.15033346]
[1753553989249,30.0,3722.5,3721.6,3.43754646]
[1753553989454,0.02020977,3722.4,3722.1,0.1344]
[1753553989811,0.02020977,3722.4,3721.1,5.50035393]
[1753553989812,30.0,3722.2,3721.3,2.68723295]
[1753553990117,5.51893187,3722.1,3721.9,0.1344]
[1753553990328,0.1344,3722.0,3721.5,0.1344]
[1753553990533,0.1344,3722.0,3721.5,2.82143579]
[1753553991105,2.81,3721.9,3721.5,0.1344]
[1753553991319,0.1344,3722.0,3721.5,0.1344]
[1753553991651,2.809,3721.9,3721.5,0.1344]
[1753553991852,3.04341264,3722.5,3721.7,2.68688663]
[1753553992052,3.6844,3722.2,3721.7,2.82128663]
[1753553992360,0.6844,3722.2,3721.8,2.68685047]
[1753553992649,2.806,3722.1,3721.9,0.9247]
[1753553992853,3.0,3722.1,3722.0,0.5979]
[1753553993017,0.1344,3722.9,3722.3,2.68648668]
[1753553993218,3.0,3722.7,3722.3,2.68648668]
[1753553993419,3.0,3722.7,3722.4,0.1344]
[1753553993729,0.1344,3722.9,3722.5,0.4635]
[1753553993949,2.803,3722.8,3722.6,2.68623333]
[1753553994130,2.803,3722.8,3722.6,2.82063333]
[1753553994333,2.803,3722.8,3722.7,3.61092236]
[1753553994541,2.803,3722.8,3722.7,3.14742236]
[1753553994959,1e-08,3723.3,3722.8,2.6861502]
[1753553995254,1e-08,3723.3,3722.9,0.4612]
[1753553995255,30.0,3723.1,3722.9,0.4612]
[1753553995419,30.0,3723.1,3723.0,0.1344]
[1753553996457,30.0,3723.1,3723.0,2.8204059]
[1753553996818,2.799,3723.2,3723.1,2.68593376]
[1753553997226,1e-08,3723.3,3723.2,2.68586162]
[1753553997434,2.79500001,3723.3,3723.2,3.74496162]
[1753553997844,2.79400001,3723.3,3723.2,3.74496162]
[1753553999155,1e-08,3723.3,3723.2,3.74496162]
[1753553999925,1e-08,3723.3,3723.2,4.38805837]
[1753554000862,1e-08,3723.3,3723.2,5.18891698]
[1753554002535,1e-08,3723.3,3723.2,8.18891698]
[1753554002729,1e-08,3723.3,3723.2,8.16205837]
[1753554011236,1e-08,3723.3,3723.2,10.01235837]
[1753554011548,1e-08,3723.3,3723.2,7.47355837]
[1753554011752,1e-08,3723.3,3723.2,7.93705837]
[1753554012839,1e-08,3723.3,3723.2,6.23735837]
[1753554014157,1e-08,3723.3,3723.2,6.69255837]
[1753554015480,1e-08,3723.3,3723.2,6.23735837]
[1753554017512,1e-08,3723.3,3723.2,0.1344]
[1753554017785,0.72650001,3723.3,3723.0,2.68595265]
[1753554017949,1e-08,3723.3,3723.0,2.68595265]
[1753554018150,0.7265,3723.2,3723.0,2.68595265]
[1753554018383,0.3695,3723.2,3723.0,2.68595265]
[1753554018583,0.7265,3723.1,3722.8,2.68613755]
[1753554018881,0.357,3723.0,3722.8,2.68613755]
[1753554019070,0.3695,3723.0,3722.8,2.68613755]
[1753554019273,1e-08,3723.3,3722.6,0.02886294]
[1753554019460,1e-08,3723.3,3723.1,2.68588334]
[1753554019665,1e-08,3723.3,3723.2,2.68586162]
[1753554020353,1e-08,3723.3,3723.2,3.57236162]
[1753554020556,1e-08,3723.3,3723.2,3.59922023]
[1753554020876,1e-08,3723.3,3723.2,3.57236162]
[1753554021075,1e-08,3723.3,3723.2,4.47558612]
[1753554021684,1e-08,3723.3,3723.2,3.58908612]
[1753554022604,1e-08,3723.3,3723.2,4.04428612]
[1753554024605,1e-08,3723.3,3723.2,3.58908612]
[1753554024909,1e-08,3723.3,3723.2,4.04428612]
[1753554027211,1e-08,3723.3,3723.2,3.58908612]
[1753554027604,1e-08,3723.3,3723.2,3.72348612]
[1753554029176,1e-08,3723.3,3723.2,4.63684473]
[1753554029613,1e-08,3723.3,3723.2,7.40984473]
[1753554029811,1e-08,3723.3,3723.2,7.38298612]
[1753554034623,1e-08,3723.3,3723.2,6.49648612]
[1753554034913,1e-08,3723.3,3723.2,6.95168612]
[1753554035218,1e-08,3723.3,3723.2,7.38298612]
[1753554036418,1e-08,3723.3,3723.2,6.95168612]
[1753554042535,1e-08,3723.3,3723.2,7.41948612]
[1753554045292,1e-08,3723.3,3723.2,6.95168612]
[1753554046527,1e-08,3723.3,3723.2,7.41948612]
[1753554049007,1e-08,3723.3,3723.2,6.95168612]
[1753554050430,1e-08,3723.3,3723.2,2.82026162]
[1753554050641,0.72650001,3723.3,3723.1,0.002]
[1753554050934,0.7265,3723.2,3723.1,0.002]
[1753554051093,0.357,3723.2,3723.1,2.6879234]
[1753554051308,0.36950001,3723.3,3723.2,2.68586162]
[1753554051762,0.72650001,3723.3,3723.2,2.68586162]
[1753554052706,1e-08,3723.3,3723.2,2.68586162]
[1753554053208,1e-08,3723.3,3723.2,4.37181831]
[1753554054010,1e-08,3723.3,3723.2,3.40731831]
[1753554054217,1e-08,3723.3,3723.2,7.16567692]
[1753554054423,1e-08,3723.3,3723.2,7.13881831]
[1753554062570,1e-08,3723.3,3723.2,2.82026162]
[1753554062789,0.72650001,3723.3,3723.2,2.82026162]
[1753554063355,33.55,3723.2,3723.1,0.002]
[1753554063549,1e-08,3723.3,3723.2,2.68586162]
[1753554063755,1e-08,3723.3,3723.2,3.69104606]
[1753554064076,1e-08,3723.3,3723.2,4.99794606]
[1753554065383,1e-08,3723.3,3723.2,5.02480467]
[1753554073391,1e-08,3723.3,3723.2,5.15920467]
[1753554087814,1e-08,3723.3,3723.2,8.15920467]
[1753554088114,1e-08,3723.3,3723.2,8.13234606]
[1753554088938,1e-08,3724.1,3724.0,3.46368464]
[1753554089093,1e-08,3724.1,3724.0,6.5630531]
[1753554089297,1e-08,3724.1,3724.0,9.6974531]
[1753554089492,1e-08,3724.1,3724.0,10.6273531]
[1753554095644,1e-08,3724.1,3724.0,7.8743531]
[1753554095807,1e-08,3724.1,3724.0,6.9444531]
[1753554096013,1e-08,3724.1,3724.0,9.6944531]
[1753554096820,1e-08,3724.1,3724.0,10.1857531]
[1753554097025,1e-08,3724.1,3724.0,9.6944531]
[1753554098243,1e-08,3724.1,3724.0,10.6243531]
[1753554099845,1e-08,3724.8,3724.7,2.68477998]
[1753554100051,1e-08,3724.8,3724.7,6.53145798]
[1753554100348,1e-08,3724.8,3724.7,7.59575798]
[1753554102249,1e-08,3724.8,3724.7,4.84775798]
[1753554102420,1e-08,3724.8,3724.7,7.62160577]
[1753554102619,1e-08,3724.8,3724.7,7.59475798]
[1753554106540,1e-08,3724.8,3724.7,10.59475798]
[1753554108981,1e-08,3724.8,3724.7,10.60005798]
[1753554110645,1e-08,3724.8,3724.7,11.15005798]
[1753554110849,0.357,3726.6,3725.7,2.68405937]
[1753554111075,0.357,3726.6,3726.5,2.68348316]
[1753554111271,11.619,3728.1,3726.5,2.68348316]
[1753554111272,0.357,3727.1,3726.5,0.02683483]
[1753554111584,0.357,3727.1,3726.1,2.68373201]
[1753554111585,32.68319987,3726.9,3726.1,2.68373201]
[1753554111756,0.74670977,3726.8,3725.4,2.68426797]
[1753554112080,0.7265,3726.7,3726.0,2.68379206]
[1753554112275,1.08970893,3726.6,3726.0,2.68379299]
[1753554112481,0.02020977,3726.6,3726.0,2.68379299]
[1753554112656,0.7265,3726.5,3726.0,2.68379299]
[1753554112856,0.74670977,3726.4,3725.3,2.741]
[1753554113052,30.7265,3726.3,3725.1,0.02684491]
[1753554113281,0.357,3726.3,3725.6,2.68406241]
[1753554113453,1.03055626,3726.2,3725.6,2.68407409]
[1753554113659,1.03055626,3726.2,3725.7,2.68405588]
[1753554113860,0.7265,3726.1,3725.6,2.68411964]
[1753554114046,0.30405626,3726.2,3724.6,3.0]
[1753554114047,0.74670977,3726.0,3725.3,2.68428719]
[1753554114248,0.7265,3725.9,3725.3,2.68428719]
[1753554114580,0.74670977,3725.8,3725.4,2.68427241]
[1753554114980,0.7265,3725.7,3725.4,2.68427241]
[1753554115148,0.02020977,3726.1,3725.4,2.68427241]
[1753554115362,0.7265,3725.6,3725.4,2.68427241]
[1753554115563,0.7265,3725.5,3725.4,2.68427241]
[1753554116393,6.289,3727.0,3725.9,2.68384496]
[1753554116595,0.357,3726.1,3725.9,2.68384496]
[1753554116755,0.357,3726.1,3726.0,2.68384326]
[1753554118468,0.357,3726.1,3725.9,2.68391282]
[1753554118680,0.3695,3726.1,3725.9,2.68391282]
[1753554118884,0.7265,3726.0,3725.4,2.68422838]
[1753554119084,0.357,3725.9,3725.5,2.68413517]
[1753554119287,0.3695,3725.8,3725.4,2.68425571]
[1753554119483,0.3695,3725.8,3725.7,2.68404223]
[1753554120199,0.3695,3726.1,3725.7,2.68404223]
[1753554120403,0.357,3726.0,3725.8,2.68393812]
[1753554120704,0.357,3726.0,3725.9,2.68391529]
[1753554121503,0.357,3726.4,3725.8,2.81834706]
[1753554121705,0.38186,3726.3,3726.0,2.68379092]
[1753554121894,0.357,3726.2,3726.1,0.1344]
[1753554122065,0.7265,3726.2,3726.1,0.1344]
[1753554124105,0.357,3726.2,3726.1,0.1344]
[1753554125579,0.7265,3726.2,3726.1,0.1344]
[1753554126091,1.137336,3726.2,3726.1,0.1344]
[1753554126316,30.0,3726.1,3725.8,0.1344]
[1753554126617,0.7265,3726.1,3725.8,0.1344]
[1753554126993,0.6765,3726.1,3725.8,0.1344]
[1753554128712,0.6765,3726.1,3725.8,2.81837881]
[1753554128912,0.410836,3726.2,3725.8,2.81837881]
[1753554129224,0.410836,3726.2,3725.9,2.68390124]
[1753554129786,0.410836,3726.2,3725.8,0.5956]
[1753554129787,0.410836,3726.2,3725.8,3.27958061]
[1753554130098,0.410836,3726.2,3725.8,0.1344]
[1753554130919,0.410836,3726.2,3725.8,2.81838507]
[1753554131284,3.142836,3726.2,3725.8,2.81838507]
[1753554131695,3.142836,3726.2,3725.9,2.68389586]
[1753554132622,3.142836,3726.2,3725.8,0.5956]
[1753554132810,3.141836,3726.2,3725.8,0.5956]
[1753554133296,0.410836,3726.2,3725.8,3.2795232]
[1753554133496,2.731,3726.2,3725.9,3.15196183]
[1753554134222,2.731,3726.2,3726.0,2.68382427]
[1753554134717,2.731,3726.2,3726.1,2.68371019]
[1753554134718,2.73,3726.2,3726.1,2.68371019]
[1753554134921,2.73,3726.2,3726.1,3.28621019]
[1753554135921,2.731,3726.2,3726.1,3.28621019]
[1753554136629,2.731,3726.2,3726.1,3.75731019]
[1753554136998,0.001,3726.2,3726.1,3.75731019]
[1753554138117,0.001,3726.2,3726.1,4.5106485]
[1753554138419,0.001,3726.2,3726.1,4.48381079]
[1753554141308,1e-08,3726.2,3726.1,8.16011079]
[1753554145429,1e-08,3726.2,3726.1,10.88411079]
[1753554149220,1e-08,3726.2,3726.1,8.16011079]
[1753554149430,1e-08,3726.2,3726.1,10.88311079]
[1753554150130,1e-08,3726.2,3726.1,8.16011079]
[1753554150338,1e-08,3726.2,3726.1,10.88111079]
[1753554151357,1e-08,3726.2,3726.1,11.01551079]
[1753554152633,1e-08,3726.2,3726.1,8.29451079]
[1753554152873,1e-08,3726.2,3726.1,11.01451079]
[1753554154881,0.357,3727.9,3726.7,2.68327459]
[1753554155174,0.357,3727.9,3726.8,3.77966013]
[1753554155479,0.357,3727.9,3726.8,4.71886013]
[1753554155675,0.357,3727.9,3726.8,3.77966013]
[1753554155844,0.357,3727.9,3727.6,2.68269127]
[1753554156179,0.357,3727.9,3727.6,2.58269127]
[1753554157702,0.357,3728.2,3727.6,2.58269127]
[1753554158050,0.3195,3728.3,3727.6,2.58269127]
[1753554158253,0.357,3728.1,3727.6,2.58269127]
[1753554162405,0.357,3728.5,3727.6,7.13774148]
[1753554162695,0.357,3728.4,3727.6,7.13774148]
[1753554162911,0.251652,3729.0,3727.6,7.13774148]
[1753554163058,0.357,3728.9,3727.6,7.13774148]
[1753554164180,0.357,3728.8,3727.6,7.13774148]
[1753554164654,2.68180901,3728.9,3727.6,6.19064148]
[1753554164862,0.357,3728.9,3727.6,7.27014148]